Cogmind - Beta 13 @@@ ROGUE MODE // 2024.07.22 @ 15:23:05 Player: Tereza Result: Destroyed by P-70 Sage with Tesla Rifle Performance ------------- Evolutions (5) 2500 Regions Visited (9) 1800 Robots Destroyed (104) 520 Value Destroyed (3646) 3646 Prototype IDs (3) 60 Alien Tech Used (0) 0 Bonus (327) 327 TOTAL SCORE: 8853 Bonus ------- High Alert Combat Kills 61 Follower Combat Kills 540 Friendly Fire -274 Cogmind --------- Core Integrity 0/1000 Matter 290/300 Energy 99/100 System Corruption 26% Temperature Cool (0) Movement Core (50) Location -5/Factory Parts ------- > --- POWER (1) -------- (None) > --- PROPULSION (3) --- Gyrokinetic Inverter > --- UTILITY (9) ------ Advanced Signal Interpreter Salvage Targeting Computer Advanced Targeting Computer Core Analyzer Core Analyzer > --- WEAPON (4) ------- (None) > --- INVENTORY (5) ---- Light Treads Large Storage Unit High-capacity Matter Pod (1) Improved Arc Projector Wave Gun Peak State ------------ > --- POWER ------------ Fusion Compressor > --- PROPULSION ------- Improved Medium Treads Carbon-fiber Leg Improved Carbon-fiber Leg > --- UTILITY ---------- Improved Heat Sink Medium Storage Unit Improved Signal Interpreter Advanced Targeting Computer Improved Target Analyzer Core Analyzer Core Analyzer System Shield Improved Dynamic Insulation System > --- WEAPON ----------- Heavy Laser Hypervelocity Gauss Cannon Hypervelocity Gauss Cannon Hypervelocity Gauss Cannon > --- INVENTORY -------- Reinforced Deuterium Engine Micro Nuclear Core Light Angular Momentum Engine Light Treads Carbon-fiber Leg Large Storage Unit High-capacity Matter Pod Improved Signal Interpreter High-powered Shock Rifle Heavy Laser [Rating: 74] Favorites ----------- Power Improved Deuterium Engine Engine Improved Deuterium Engine Power Core Fusion Compressor Propulsion Improved Treads Treads Improved Treads Leg Improved Carbon-fiber Leg Wheel Wheel Hover Unit Antigrav System Flight Unit Cooled VTOL Module Utility Core Analyzer Device Seismic Detector Storage Medium Storage Unit Processor Core Analyzer Hackware System Shield Protection Hardened Light Armor Plating Weapon Improved Light Cannon Energy Gun Heavy Laser Energy Cannon Heavy Ion Cannon Ballistic Gun Light Assault Rifle Ballistic Cannon Improved Light Cannon Launcher Proton Missile Launcher Special Weapon Improved Plasma Cutter Slashing Weapon Segregator Build | -11 -10 -9 -8 -7 -6 -6 -5 -5 -5 ------- Run | Yrd Mat Mat Mat Fac Fac Ext Fac Was Fac Slots Evolved 10 | . . 2 2 2 2 . 2 . . Power . | . . . . . . . . . . Propulsion 1 | . . . 1 . . . . . . Utility 7 | . . 2 . 2 2 . 1 . . Weapon 2 | . . . 1 . . . 1 . . Parts Attached 129 | 6 10 7 13 21 4 21 14 . 33 Power 13 | 1 1 2 1 3 . 2 2 . 1 Engine 8 | 1 1 2 . 2 . . 1 . 1 Core 5 | . . . 1 1 . 2 1 . . Reactor . | . . . . . . . . . . Propulsion 33 | 2 2 . 5 7 . 6 . . 11 Treads 12 | 2 2 . 4 . . 3 . . 1 Leg 8 | . . . 1 2 . 2 . . 3 Wheel 6 | . . . . 4 . 1 . . 1 Hover 4 | . . . . . . . . . 4 Flight 3 | . . . . 1 . . . . 2 Utility 36 | 1 3 4 2 5 2 7 5 . 7 Device 10 | . . 1 1 2 . 1 3 . 2 Storage 5 | 1 1 1 . . . 1 1 . . Processor 13 | . 1 . 1 3 . 3 1 . 4 Hackware 1 | . . . . . 1 . . . . Protection 7 | . 1 2 . . 1 2 . . 1 Artifact . | . . . . . . . . . . Weapon 47 | 2 4 1 5 6 2 6 7 . 14 Energy Gun 16 | . . . . 2 2 2 2 . 8 Energy Cannon 2 | . 1 . 1 . . . . . . Ballistic Gun 8 | 2 1 . 1 1 . . . . 3 Ballistic Cannon 15 | . 2 1 2 2 . 2 5 . 1 Launcher 4 | . . . 1 1 . 2 . . . Special Weapon 1 | . . . . . . . . . 1 Impact Weapon . | . . . . . . . . . . Slashing Weapon 1 | . . . . . . . . . 1 Piercing Weapon . | . . . . . . . . . . Special Melee Weapon . | . . . . . . . . . . Unidentified Prototypes 3 | . . . . 1 2 . . . . Corrupted Parts 2 | . . . . . . . . . 2 System Corruption 7 | . . . . . . . . . 7 Parts Lost 63 | . . 2 13 11 . 13 10 1 13 Power 5 | . . . 2 1 . 1 1 . . Propulsion 20 | . . . 5 3 . 5 2 1 4 Utility 12 | . . 1 1 1 . 4 2 . 3 Weapon 26 | . . 1 5 6 . 3 5 . 6 Highest Loss Streak 8 | . . 2 6 4 . 8 5 1 4 To Critical Strikes 3 | . . . 1 . . . 1 . 1 Average Slot Usage (%) 82 | . 98 100 86 67 94 89 90 64 65 Engine 3 | . 14 11 2 1 6 3 1 . 1 Core 1 | . . . 4 . . 2 3 4 . Treads 9 | . 28 22 20 2 . 2 5 4 2 Leg 2 | . . . . 1 6 5 9 . 1 Wheel 1 | . . . . 2 13 4 . . 1 Device 5 | . . 11 9 8 6 1 6 5 1 Storage 6 | . 14 11 9 7 6 5 5 4 . Processor 22 | . . 11 11 24 26 31 29 29 34 Hackware 1 | . . . . . 6 6 5 5 . Protection 4 | . 12 11 6 . 6 6 . . 2 Energy Gun 3 | . . . . 1 7 8 5 9 5 Energy Cannon 1 | . 2 . 1 2 . . . . . Ballistic Gun 3 | . 23 . 1 2 . . . . 6 Ballistic Cannon 7 | . 1 22 17 2 . 4 11 . . Launcher 1 | . . . 1 3 6 4 1 . . Naked Turns . | . . . . . . . . . . Heaviest Build 56 | 10 28 31 35 29 43 48 56 28 34 Greatest Support 69 | 40 46 46 69 20 20 33 33 30 20 Greatest Overweight (x) 17 | . . . 1 6 2 10 17 2 4 Average Overweight (x) . | . . . . 1 1 2 . . . Largest Inventory Capacity 10 | 8 10 10 10 10 10 10 10 10 5 Average Capacity 9 | 7 8 10 10 10 10 9 10 8 5 Most Carried 10 | 6 10 10 10 10 10 10 10 9 5 Average Carried 8 | 4 8 9 9 9 8 8 9 8 4 Final Capacity 10 | 8 10 10 10 10 10 10 10 5 5 Final Carried 10 | 6 10 10 9 10 9 10 9 5 5 Class Distribution -------------------- 49% | Mutant 28% | Scavenger-Gunner 8% | Scavenger-Mutant 7% | Gunner Dominant Class ---------------- Mutant | -10/Materials Mutant | -9/Materials Mutant | -8/Materials Mutant | -7/Factory Mutant | -6/Factory Gunner | -6/Extension Scavenger-Gunner | -5/Factory Scavenger-Mutant | -5/Waste Scavenger-Gunner | -5/Factory Resources | -11 -10 -9 -8 -7 -6 -6 -5 -5 -5 ----------- Run | Yrd Mat Mat Mat Fac Fac Ext Fac Was Fac Matter Collected 3382 | 179 136 212 467 680 . 645 410 . 653 Remotely . | . . . . . . . . . . Salvage Created 3710 | . 246 217 314 710 . 965 793 . 465 Parts 191 | . 19 18 28 28 . 38 38 . 22 Haulers Intercepted . | . . . . . . . . . . Recyclers Shooed 3 | . . . . 2 . . 1 . . Parts Field Recycled . | . . . . . . . . . . Retrieved Matter . | . . . . . . . . . . Parts Self-Destructed . | . . . . . . . . . . Prevented . | . . . . . . . . . . Kills | -11 -10 -9 -8 -7 -6 -6 -5 -5 -5 ------- Run | Yrd Mat Mat Mat Fac Fac Ext Fac Was Fac Combat Hostiles Destroyed 79 | . 7 10 20 11 . 10 14 . 7 Melee 4 | . . . 4 . . . . . . Guns 25 | . 7 . 2 1 . 5 3 . 7 Cannons 38 | . . 10 10 6 . 2 10 . . AOE 11 | . . . 4 4 . 3 . . . Classes Destroyed 13 | . 3 2 . 3 . 4 1 . . Worker 6 | . . . . 1 . 1 3 . 1 Builder 4 | . . . . . . 3 1 . . Tunneler 1 | . . . . . . 1 . . . Recycler 6 | . . 1 . 2 . 3 . . . Mechanic 1 | . . . . . . 1 . . . Operator 3 | . . . . 2 . . . . 1 Watcher 4 | . 1 1 1 . . 1 . . . Swarmer 20 | . 3 7 9 1 . . . . . Grunt 34 | . 4 . 8 6 . 6 7 . 3 Duelist 1 | . . . . . . 1 . . . Sentry 13 | . . 3 3 1 . 2 2 . 2 Hunter 2 | . . . . . . . 2 . . Programmer 9 | . . . . 3 . 1 3 . 2 Best Kill Streak 8 | . 3 5 4 4 . 8 4 . 2 Combat Bots Only 4 | . 3 4 4 3 . 3 2 . 2 Max Kills in Single Turn 4 | . 1 1 2 2 . 4 3 . 1 Gunslinging . | . . . . . . . . . . Exploded 2 | . . . 2 1 . 1 . . . Melee 1 | . . . 1 . . . . . . Uniques/NPCs Destroyed . | . . . . . . . . . . Combat | -11 -10 -9 -8 -7 -6 -6 -5 -5 -5 -------- Run | Yrd Mat Mat Mat Fac Fac Ext Fac Was Fac Hostile Shots Fired 845 | . 36 80 186 133 9 138 140 1 122 Missed 237 | . 10 20 49 34 8 47 28 . 41 Damage Taken 9568 | . 288 578 1897 1235 6 1668 1991 41 1864 Core 1836 | . 51 31 232 275 6 234 321 41 645 Absorbed by Shields 45 | . . . . . . 45 . . . Core Remaining (%) 76 | 100 79 92 57 60 . 71 . . . Volleys Fired 271 | . 37 38 53 42 . 41 29 . 31 Largest 4 | . 2 2 3 3 . 3 4 . 3 Hottest 252 | . 80 78 122 119 . 183 252 . 153 Shots Fired 542 | . 74 75 105 69 . 74 87 1 57 Gun 248 | . 69 . 16 31 . 42 36 1 53 Cannon 264 | . 5 75 84 30 . 19 51 . . Launcher 26 | . . . 5 8 . 13 . . . Special 4 | . . . . . . . . . 4 Kinetic 388 | . 69 75 99 37 . 19 51 . 38 Thermal 96 | . 5 . 1 14 . 42 29 1 4 Explosive 18 | . . . 5 . . 13 . . . Electromagnetic 40 | . . . . 18 . . 7 . 15 Robot Hit Streak 17 | . 12 10 9 17 . 13 16 . 15 Robot Miss Streak 4 | . 4 4 4 2 . 4 4 1 1 Penetration Max 2 | . . . . . . 2 1 . . Secondary Targets 1 | . . . . . . 1 . . . Max Gunslinging Chain 1 | . . . . . . 1 . . . Shots Hit Robots 340 | . 50 36 63 53 . 46 47 . 45 Core Hits 194 | . 19 11 27 29 . 57 32 . 19 Critical Kills 13 | . . . . 1 . 4 6 . 2 Critical Parts Destroyed 15 | . 1 . . 1 . 4 7 . 2 Critical Strikes 42 | . 1 2 1 4 . 10 19 . 5 Burn 4 | . . . . . . 2 2 . . Meltdown 1 | . . . . 1 . . . . . Destroy 28 | . 1 . . 1 . 8 14 . 4 Blast 7 | . . 2 1 2 . . 2 . . Corrupt 2 | . . . . . . . 1 . 1 Melee Attacks 5 | . . . . . . . . . 5 Thermal 5 | . . . . . . . . . 5 Impact . | . . . . . . . . . . Slashing . | . . . . . . . . . . Piercing . | . . . . . . . . . . Sneak Attacks 2 | . . . . . . . . . 2 Combat Hostiles . | . . . . . . . . . . Follow-up Attacks . | . . . . . . . . . . Damage Inflicted 9871 | . 431 778 1610 1632 . 3088 1446 . 886 Guns 3062 | . 413 . 135 365 . 844 467 . 838 Cannons 3655 | . 18 778 1078 684 . 297 800 . . Explosions 3073 | . . . 368 579 . 1947 179 . . Melee . | . . . . . . . . . . Ramming 33 | . . . 29 4 . . . . . Kinetic 4666 | . 413 778 1185 572 . 297 800 . 621 Thermal 2035 | . 18 . 28 568 . 844 529 . 48 Explosive 2315 | . . . 368 . . 1947 . . . Electromagnetic 822 | . . . . 488 . . 117 . 217 Impact . | . . . . . . . . . . Slashing . | . . . . . . . . . . Piercing . | . . . . . . . . . . Highest Corruption 26 | . 2 . . 9 . . . 17 26 Average Corruption 11 | . 2 . . 6 . . . 12 20 Corruption Purged . | . . . . . . . . . . Corruption Blocked . | . . . . . . . . . . Effects 89 | . 5 . . 24 . . . 9 51 Message Errors 32 | . 1 . . 12 . . . 3 16 Matter Fused 15 | . 2 . . 2 . . . . 11 Heat Flow Errors 5 | . . . . 1 . . . 1 3 Energy Discharges 12 | . . . . 3 . . . . 9 Parts Fused 1 | . . . . . . . . . 1 Data Loss (minor) 7 | . 1 . . 3 . . . . 3 Data Loss (major) 5 | . 1 . . 1 . . . 2 1 Misfires 3 | . . . . 1 . . . 1 1 Alerts 3 | . . . . 1 . . . 1 1 Misdirections 5 | . . . . . . . . 1 4 Weapon Failures 1 | . . . . . . . . . 1 Overload Shots . | . . . . . . . . . . Overflow Damage 150 | . . 49 59 35 . 1 6 . . Projectiles 88 | . . 49 16 16 . 1 6 . . Explosions 62 | . . . 43 19 . . . . . Melee . | . . . . . . . . . . Knockbacks 35 | . . 6 16 2 . 4 7 . . Impact 1 | . . . 1 . . . . . . Kinetic 32 | . . 6 13 2 . 4 7 . . Secondary 2 | . . . 2 . . . . . . Self-Inflicted Damage 333 | . . . 94 1 . 41 197 . . Shots 6 | . . . 3 . . 1 2 . . Rammed 11 | . . . 8 3 . . . . . Targets Rammed 15 | . . . 12 3 . . . . . Kicked . | . . . . . . . . . . Crushed 4 | . . . 4 . . . . . . Highest Temperature 456 | . 85 288 292 186 . 396 456 82 178 Average Temperature 98 | . 27 114 86 42 . 131 146 27 43 Received Heat Transfer 2481 | . 138 90 846 399 . 375 201 . 432 Effects 7 | . . . 3 . . 2 2 . . Shutdowns 2 | . . . . . . 1 1 . . Energy Bleed 1 | . . . . . . 1 . . . Interference 4 | . . . 3 . . . 1 . . Siege Activations . | . . . . . . . . . . Robots Corrupted 1 | . . . . . . . 1 . . Combat Hostiles 1 | . . . . . . . 1 . . Parts Fried 4 | . . . . 1 . . 1 . 2 Impact Corruptions . | . . . . . . . . . . Robots Melted 1 | . . . . 1 . . . . . Combat Hostiles . | . . . . . . . . . . Parts Melted 10 | . . . . 3 . 4 3 . . Heat Transferred 3199 | . 37 . 37 731 . 1369 914 . 111 Parts Sabotaged 7 | . . . . . . . . . 7 Parts Stolen . | . . . . . . . . . . Parts Stripped . | . . . . . . . . . . Power Chain Reactions 2 | . . . . 2 . . . . . Alert | -11 -10 -9 -8 -7 -6 -6 -5 -5 -5 ------- Run | Yrd Mat Mat Mat Fac Fac Ext Fac Was Fac Peak Influence 586 | . 160 226 319 166 112 586 448 128 172 Initial 213 | . . 27 94 76 81 54 213 128 82 Average 141 | . 46 149 113 89 88 197 308 125 93 Maximum Alert Level 2 | . . 1 1 . . 2 2 . . Low Security (%) 75 | 100 100 50 86 100 100 66 3 100 100 Level 1 19 | . . 49 13 . . 8 79 . . Level 2 5 | . . . . . . 24 17 . . Level 3 . | . . . . . . . . . . Level 4 . | . . . . . . . . . . Level 5 . | . . . . . . . . . . High Security . | . . . . . . . . . . Max Security . | . . . . . . . . . . Squads Dispatched 23 | . . 3 4 4 1 3 3 . 5 Investigation 3 | . . 1 . . 1 . 1 . . Extermination 4 | . . . . 2 . . 1 . 1 Reinforcement 11 | . . 2 1 2 . 2 . . 4 Assault 1 | . . . . . . 1 . . . Garrison 4 | . . . 3 . . . 1 . . Intercept . | . . . . . . . . . . Searches Triggered . | . . . . . . . . . . Construction Impeded 2 | . . . . . . 2 . . . Haulers Reinforced . | . . . . . . . . . . Active Scanning Responses . | . . . . . . . . . . Cargo Convoy Interrupts 1 | . . . . . . . . . 1 Stealth | -11 -10 -9 -8 -7 -6 -6 -5 -5 -5 --------- Run | Yrd Mat Mat Mat Fac Fac Ext Fac Was Fac Distress Signals 8 | . 1 1 2 1 . 3 . . . Communications Jammed . | . . . . . . . . . . Distress Signals . | . . . . . . . . . . Times Spotted 182 | . 16 21 31 23 1 28 26 6 30 Peak Tracking Total 12 | . 7 5 7 4 2 5 6 6 12 Tactical Retreats 12 | . 2 1 2 2 . . 3 . 2 Traps | -11 -10 -9 -8 -7 -6 -6 -5 -5 -5 ------- Run | Yrd Mat Mat Mat Fac Fac Ext Fac Was Fac Traps Triggered 15 | . 1 1 . 6 1 2 2 . 2 Indirectly . | . . . . . . . . . . Trap Hack Attempts . | . . . . . . . . . . Triggered . | . . . . . . . . . . Disarmed . | . . . . . . . . . . Reprogrammed . | . . . . . . . . . . Reused . | . . . . . . . . . . Traps Extracted . | . . . . . . . . . . Installed . | . . . . . . . . . . Triggered . | . . . . . . . . . . Machines | -11 -10 -9 -8 -7 -6 -6 -5 -5 -5 ---------- Run | Yrd Mat Mat Mat Fac Fac Ext Fac Was Fac Machines Disabled 11 | . . 1 1 4 . 3 2 . . Max in Single Turn 2 | . . 1 1 2 . 2 2 . . Garrison Access 1 | . . . . . . . 1 . . Machines Repaired . | . . . . . . . . . . Machines Dismantled . | . . . . . . . . . . Machines Sabotaged . | . . . . . . . . . . Overloaded Fab Kills . | . . . . . . . . . . Hacking | -11 -10 -9 -8 -7 -6 -6 -5 -5 -5 --------- Run | Yrd Mat Mat Mat Fac Fac Ext Fac Was Fac Machines Accessed 29 | . 2 5 5 5 3 3 2 . 4 Terminals 25 | . 2 5 4 3 3 3 1 . 4 Fabricators . | . . . . . . . . . . Repair Stations . | . . . . . . . . . . Recycling Units 1 | . . . . 1 . . . . . Scanalyzers . | . . . . . . . . . . Garrison Access 3 | . . . 1 1 . . 1 . . Total Hacks 57 | . 2 13 11 10 8 4 4 . 5 Successful 20 | . . 3 4 4 3 3 2 . 1 Failed 37 | . 2 10 7 6 5 1 2 . 4 Catastrophic 10 | . 2 3 2 . . . . . 3 Database Lockouts . | . . . . . . . . . . Manual 21 | . 2 4 3 1 5 . 2 . 4 Terminals 48 | . 2 13 9 4 8 4 3 . 5 Fabricators . | . . . . . . . . . . Repair Stations . | . . . . . . . . . . Recycling Units 4 | . . . . 4 . . . . . Scanalyzers . | . . . . . . . . . . Garrison Access 5 | . . . 2 2 . . 1 . . Terminal Hacks 17 | . . 3 4 2 3 3 1 . 1 Record 4 | . . . 1 1 2 . . . . Robot Analysis 1 | . . . 1 . . . . . . Open Door 4 | . . . . . 1 3 . . . Branch Access Points 1 | . . . . . . . 1 . . Alert Level 5 | . . 2 1 1 . . . . 1 Unreport Threat 1 | . . . 1 . . . . . . Recall Investigation 1 | . . 1 . . . . . . . Fabricator Hacks . | . . . . . . . . . . Repair Station Hacks . | . . . . . . . . . . Recycling Unit Hacks 2 | . . . . 2 . . . . . Recycle Component 1 | . . . . 1 . . . . . Process 1 | . . . . 1 . . . . . Scanalyzer . | . . . . . . . . . . Garrison Access Hacks 1 | . . . . . . . 1 . . Seal Access 1 | . . . . . . . 1 . . Unauthorized Hacks . | . . . . . . . . . . Terminals . | . . . . . . . . . . Fabricators . | . . . . . . . . . . Repair Stations . | . . . . . . . . . . Recycling Units . | . . . . . . . . . . Scanalyzers . | . . . . . . . . . . Garrison Access . | . . . . . . . . . . Data Cores Recovered . | . . . . . . . . . . Used . | . . . . . . . . . . Hacking Detections 22 | . 2 5 4 4 2 1 1 . 3 Full Trace Events . | . . . . . . . . . . Feedback Events . | . . . . . . . . . . Feedback Blocked . | . . . . . . . . . . Robot Schematics Acquired . | . . . . . . . . . . Robots Built . | . . . . . . . . . . Authchips . | . . . . . . . . . . Time . | . . . . . . . . . . Total Robot Build Rating . | . . . . . . . . . . Part Schematics Acquired . | . . . . . . . . . . Parts Built . | . . . . . . . . . . Authchips . | . . . . . . . . . . Time . | . . . . . . . . . . Total Part Build Rating . | . . . . . . . . . . Parts Repaired . | . . . . . . . . . . Time . | . . . . . . . . . . Parts Recycled 1 | . . . . 1 . . . . . Recycled Matter 62 | . . . . 62 . . . . . Retrieved Matter . | . . . . . . . . . . Retrieved Components . | . . . . . . . . . . Parts Scanalyzed . | . . . . . . . . . . Part Schematics Acquired . | . . . . . . . . . . Parts Damaged . | . . . . . . . . . . Bothacking | -11 -10 -9 -8 -7 -6 -6 -5 -5 -5 ------------ Run | Yrd Mat Mat Mat Fac Fac Ext Fac Was Fac Used RIF Installer . | . . . . . . . . . . Robots Hacked . | . . . . . . . . . . Non-combat . | . . . . . . . . . . Combat . | . . . . . . . . . . Robot Hacks Applied . | . . . . . . . . . . Relay Couplers Released . | . . . . . . . . . . Fabnet Peak Effective % . | . . . . . . . . . . Robots Rewired 3 | . . . . . . 3 . . . Allies Hacked . | . . . . . . . . . . Hacks Repelled . | . . . . . . . . . . Allies | -11 -10 -9 -8 -7 -6 -6 -5 -5 -5 -------- Run | Yrd Mat Mat Mat Fac Fac Ext Fac Was Fac Total Allies 7 | . . . . . . 7 . . . Largest Group 7 | . . . . . . 7 3 . . Highest-Rated Group 361 | . . . . . . 361 219 . . Highest-Rated Ally 159 | . . . . . . 159 159 . . Total Orders 1 | . . . . . . . 1 . . FOLLOW 1 | . . . . . . . 1 . . Ally Attacks 106 | . . . . . . 88 18 . . Total Damage 2451 | . . . . . . 2162 289 . . Kills 18 | . . . . . . 17 1 . . Allies Corrupted . | . . . . . . . . . . Allies Melted . | . . . . . . . . . . Intel | -11 -10 -9 -8 -7 -6 -6 -5 -5 -5 ------- Run | Yrd Mat Mat Mat Fac Fac Ext Fac Was Fac Robot Analysis Total 1 | . . . 1 . . . . . . Derelict Logs Recovered . | . . . . . . . . . . Drone Launches . | . . . . . . . . . . Drone Recoveries . | . . . . . . . . . . Exploration | -11 -10 -9 -8 -7 -6 -6 -5 -5 -5 ------------- Run | Yrd Mat Mat Mat Fac Fac Ext Fac Was Fac Turns Passed 6986 | 64 579 667 883 1521 163 904 1026 196 983 Spaces Moved 3821 | 35 278 332 381 806 143 421 449 141 835 Core 324 | 5 . . . 2 . 2 2 49 264 Treads 1637 | 30 278 332 381 240 . . 82 92 202 Legs 577 | . . . . 58 . 149 365 . 5 Wheels 1035 | . . . . 465 143 270 . . 157 Hover 26 | . . . . . . . . . 26 Flight 222 | . . . . 41 . . . . 181 Fastest Speed 35 | 50 160 160 160 95 95 95 120 50 35 Average Speed 147 | 144 160 160 174 161 108 157 190 132 92 Slowest Speed 900 | 160 160 160 240 360 110 550 900 160 260 Overloaded Moves . | . . . . . . . . . . Propulsion Burnouts . | . . . . . . . . . . Robots Hopped . | . . . . . . . . . . Cave-ins Triggered . | . . . . . . . . . . Exploration Rate (%) 33 | 4 51 33 37 22 5 60 12 82 25 Regions Visited 9 Branch Regions 1 Pre-discovered Areas . | . . . . . . . . . . Known Exits Taken 6 | . 1 1 1 1 1 1 . . . Unknown Exits Taken 1 | 1 . . . . . . . . . Scrap Searched . | . . . . . . . . . . Spaces Dug . | . . . . . . . . . . Terrain Destroyed 159 | . . 2 35 7 . 77 34 . 4 Melee . | . . . . . . . . . . Projectile 24 | . . 2 2 . . 6 10 . 4 AOE 135 | . . . 33 7 . 71 24 . . Terrain Rammed . | . . . . . . . . . . Walls Destroyed . | . . . . . . . . . . Machines Disabled . | . . . . . . . . . . Actions | -11 -10 -9 -8 -7 -6 -6 -5 -5 -5 --------- Run | Yrd Mat Mat Mat Fac Fac Ext Fac Was Fac Total 4672 | 46 359 395 496 964 149 586 557 150 970 Wait 218 | . 9 10 24 47 . 9 54 8 57 Move 3813 | 34 277 331 380 805 142 420 449 140 835 Hop . | . . . . . . . . . . Pick Up 65 | 6 12 5 8 12 2 11 6 . 3 Fast Attach 74 | 6 3 . 7 15 2 11 3 . 27 Attach 29 | . 1 4 6 5 2 3 4 . 4 Detach 4 | . . . 1 2 . . . . 1 Swap 26 | . 6 3 . 1 . 7 7 . 2 Drop 51 | . 14 4 5 8 1 7 5 2 5 Fire 271 | . 37 38 53 42 . 41 29 . 31 Melee 5 | . . . . . . . . . 5 Ram 1 | . . . . 1 . . . . . Kick . | . . . . . . . . . . Crush 14 | . . . 12 2 . . . . . Escape Stasis 40 | . . . . 24 . 16 . . . Rewire 61 | . . . . . . 61 . . . Trap . | . . . . . . . . . . Miscellaneous . | . . . . . . . . . . Route ------- -11/Scrapyard -10/Materials -9/Materials -8/Materials -7/Factory (discovered 2 exits: *Fac x2) -6/Factory -6/Extension (discovered 2 exits: *Fac / *Cet) -5/Factory (discovered 2 exits: Upp x2) -5/Waste -5/Factory History --------- Turn | Location | Event 7 | -11/Scrapyard | Discovered new exit (range 14) 65 | -11/Scrapyard | Entered Materials 305 | -10/Materials | Build established: Mutant 635 | -10/Materials | Discovered new exit (range 4) 644 | -10/Materials | Identified exit to Materials 644 | -10/Materials | Entered another Materials area 644 | -9/Materials | Evolved 2 slots: Utility x2 1115 | -9/Materials | Discovered new exit (range 11) 1308 | -9/Materials | Identified exit to Materials 1311 | -9/Materials | Entered another Materials area 1311 | -8/Materials | Evolved 2 slots: Propulsion x1, Weapon x1 1604 | -8/Materials | Lost 4 parts (1p2n1w) 1939 | -8/Materials | Lost 3 parts (1n1u1w) 1959 | -8/Materials | Garrison activated, responded to threat 2078 | -8/Materials | Lost 6 parts (1p2n3w) 2168 | -8/Materials | Discovered new exit (range 5) 2178 | -8/Materials | Identified exit to Factory 2194 | -8/Materials | Entered Factory 2194 | -7/Factory | Evolved 2 slots: Utility x2 2335 | -7/Factory | Discovered new exit (range 10) 2354 | -7/Factory | Identified exit to Factory 2845 | -7/Factory | Lost 3 parts (1n2w) 2991 | -7/Factory | Discovered exit to Factory (range 13) 3409 | -7/Factory | Lost 4 parts (1n3w) 3715 | -7/Factory | Entered another Factory area 3715 | -6/Factory | Evolved 2 slots: Utility x2 3869 | -6/Factory | Discovered new exit (range 10) 3876 | -6/Factory | Identified exit to Extension 3878 | -6/Factory | Entered Extension 4109 | -6/Extension | Lost 3 parts (1n1u1w) 4206 | -6/Extension | Rescued A7 4249 | -6/Extension | Rescued a captive Derelict 4250 | -6/Extension | Rescued a captive Derelict 4263 | -6/Extension | Rescued a captive Derelict 4328 | -6/Extension | Spotted B-75 Beast 4350 | -6/Extension | Spotted B-75 Beast 4380 | -6/Extension | Allies destroyed B-75 Beast 4387 | -6/Extension | Allies destroyed B-75 Beast 4407 | -6/Extension | Lost 4 allies 4409 | -6/Extension | Lost 8 parts (1p2n3u2w) 4428 | -6/Extension | Disrupted transfer network 4578 | -6/Extension | First assault squad dispatched 4724 | -6/Extension | Discovered new exit (range 16) 4726 | -6/Extension | Discovered new exit (range 15) 4753 | -6/Extension | Identified exit to Cetus 4775 | -6/Extension | Identified exit to Factory 4782 | -6/Extension | Entered Factory 4782 | -5/Factory | Accompanied by 3 allies (A7) 4782 | -5/Factory | Evolved 2 slots: Utility x1, Weapon x1 4843 | -5/Factory | Build established: Scavenger-Gunner 4938 | -5/Factory | Identified exit to Upper Caves 5402 | -5/Factory | Garrison activated, responded to threat 5728 | -5/Factory | Lost 5 parts (1p1n3w) 5808 | -5/Factory | Sucked down chute 5808 | -5/Factory | Entered Waste 5823 | -5/Waste | EMP discharged 5824 | -5/Waste | Spotted C-40 Crusher 5913 | -5/Waste | Spotted C-40 Crusher 5921 | -5/Waste | Spotted C-40 Crusher 5923 | -5/Waste | EMP discharged 5923 | -5/Waste | System corruption reached 10% 5929 | -5/Waste | Spotted C-40 Crusher 5957 | -5/Waste | Spotted C-40 Crusher 5962 | -5/Waste | Crushed by Compactor (1 part destroyed, 2 dropped) 5984 | -5/Waste | Spotted C-40 Crusher 5996 | -5/Waste | Discovered new exit (range 16) 6003 | -5/Waste | Identified exit to Factory 6004 | -5/Waste | Entered Factory 6170 | -5/Factory | Core integrity fell below 50% 6199 | -5/Factory | Lost 4 parts (1n1u2w) 6852 | -5/Factory | Cargo convoy interrupted 6902 | -5/Factory | Lost 3 parts (2n1w) 6924 | -5/Factory | Core integrity fell below 20% 6987 | -5/Factory | Destroyed by P-70 Sage with Tesla Rifle Last Messages --------------- Door malfunctions. U-05 Engineer lays Concrete. System corrupted: Energy discharge (-27). Segregator destroyed. Acquired Adv. Weight Redist. System. System corrupted: Energy discharge (-16). Acquired 163 matter. K-01 Serf cleans the Assembly Bed. ALERT: Suspicious intruders detected, dispatching Cutter reinforcements to area. K-01 Serf cleans the Assembly Bed. Assembly Bed disabled. Slug penetrates Wall. Nuclear Reactor explodes. Imp. Target Analyzer destroyed. Cesium-ion Thruster destroyed. Terminal disabled. Adv. Weight Redist. System destroyed. Knocked back. System corrupted: Matter fused (-10). Map ----- +----------------------------------------------------+ | ???????????????????#=????????????????????????##### | | ???????????????????##????????????????????????# | | ?????????????????????????????????????????????# | | ?????????????????????????????????????? ????# | | ????????????????????????????????????? ???# | | ?????????????????????????????????????? ??# | | ??????????????????????????????????????? ?# | | ????????????????????????????????????????? ?####/ | | ???????????????????????????????????????####/##### | | ???????????????????????????????????????# | | ???????????????????????????????????????# | | ???????????????????????????????????????# !!! | | ???????????????????????????????????????# !!! | | ???????????????????????????????????????# !!! | | ???????????????????????????????????????# | | ???????????????????????????????????????# | | ???????????????????????????????????????# | | ???????????????????????????????????????# | | ???????????????????????????????????????# """" "" | | ????????????##############?????????????# """" "" | | ????????????# #?????????????# """" "" | | ????????????# #?????????????# """" "" | | ????????????# ###########+### """" "" | | ????????????# """" """" # """" "" | | ????????????# """" """" # | | ????????????# """" """" @ w """ "" | | ????????????# """" """" #p """" "" | | ????????????# """" """" #% u """" "" | | ????????????# """" """" ### ###### """" "" | | ????????????# H # ! #?# """" "" | | ????????????# # #?# """" "" | | ????????????# ! # " ### | | ????????????############## """ | | ?????????????????????????# "T ### | | ?????????????????????????# "" #?# | | ?????????????????????????# " # #?########### | | ?????????????????????????# #???????????? | | ?????????????????????????##### ###???????????? | | ?????????????????????????????? ##?????????????? | | ?????????????????????????????? #??????????????? | | ?????????????????????????????? #??????????????? | | ?????????????????????????????? #??????????????? | | ?????????????????????????????? #??????????????? | | ?????????????????????????????? #??????????????? | | ??????????????????????????????###????????????????? | | ?????????????????????????????????????????????????? | | ?????????????????????????????????????????????????? | | ?????????????????????????????????????????????????? | | ?????????????????????????????????????????????????? | | ?????????????????????????????????????????????????? | +----------------------------------------------------+ Best States ------------- Heat Dissipation 61 Energy Generation 25 Energy Capacity 310 Matter Stores 300 Matter Capacity 300 Sight Range 16 Robot Scan Range 15 Terrain Scan Density 210 EM Shielding 3 Armor Coverage 225 Evasion (%) 63 Targeting Accuracy 8 Target Analysis 9 Core Analysis 9 Recoil Reduction 3 Salvage Targeting 1 Defensive Hacking 10 Item Schematics ----------------- None Robot Schematics ------------------ None Fabricated ------------ Nothing Alien Tech Used ----------------- None Achievements -------------- None Challenges ------------ None Game ------ Seed CatalystStealthShotgun Manual? 0 Play Time 01:18:23 Cumulative 40.0 hours Start 2024.07.21 @ 15:46:36 End 2024.07.22 @ 15:23:05 Sessions 3 Manual Loads 0 Difficulty Rogue Special Mode None Game No. 40 Rogue 40 Adventurer 0 Explorer 0 Win Type - Total 0 Types 0/0/0/0/0/0/0/0/0 Lore% 30 Gallery% 36 Achievement% 26 Wizard Run 0 Options --------- Layout 1 ASCII 0 Keyboard 1 Movement Numpad Keybinds 0 Fullscreen 1 Font 24/Smallcaps Map View 50x35 Zoom Use 0% Tactical HUD 0 Map Filters NONE Filters NONE Steam 1 RUN: 25b78f7b-f98a-4ad8-9129-1b0771275466